[Event "IIFL Wealth  4th Mumbai Junior U-13"]
[Site "Mumbai"]
[Date "2019.01.06"]
[Round "8"]
[White "Dande Vyankatesh S"]
[Black "Vegi Bhavishnu Sai Sivaji"]
[Result "1-0"]
[ECO "B71"]
[WhiteElo "1418"]
[BlackElo "1225"]
[Annotator "NA"]
[PlyCount "83"]
[EventDate "2018.12.30"]
[EventType "swiss"]
[EventCountry "IND"]
[SourceTitle "playchess.com"]
[Source "ChessBase"]
[SourceQuality "1"]
[TimeControl "40/5400+30:1800+30"]

1. e4 {[%emt 0:00:00]} c5 {[%emt 0:00:00]} 2. Nf3 {[%emt 0:00:00]} d6 {[%emt 0:00:00]} 3. d4 {[%emt 0:00:00]} cxd4 {[%emt 0:00:00]} 4. Nxd4 {[%emt 0:00:00]} Nf6 {[%emt 0:00:00]} 5. Nc3 {[%emt 0:00:00]} g6 {[%emt 0:00:08]} 6. f4 {[%emt 0:00:05]} Bg7 {[%emt 0:02:02]} 7. e5 {[%emt 0:00:07]} Ng8 {[%emt 0:26:37]} 8. Bb5+ {[%emt 0:03:29]} Bd7 {[%emt 0:00:19]} 9. e6 {[%emt 0:00:14]} Bxb5 {[%emt 0:00:36]} 10. exf7+ {[%emt 0:00:26]} Kxf7 {[%emt 0:00:16]} 11. Ndxb5 {[%emt 0:00:17]} Nf6 {[%emt 0:02:37]} 12. O-O {[%emt 0:00:28]} a6 {[%emt 0:01:17]} 13. Na3 {[%emt 0:00:19]} e6 {[%emt 0:02:07]} 14. Nc4 {[%emt 0:01:42]} d5 {[%emt 0:11:31]} 15. Ne5+ {[%emt 0:01:59]} Ke7 {[%emt 0:00:55]} 16. Be3 {[%emt 0:08:01]} Nbd7 {[%emt 0:00:26]} 17. Qd4 {[%emt 0:04:30]} a5 {[%emt 0:13:09]} 18. Nb5 {[%emt 0:06:56]} Rg8 {[%emt 0:08:28]} 19. Qc3 {[%emt 0:00:36]} Ne4 {[%emt 0:04:31]} 20. Qa3+ {[%emt 0:00:36]} Ke8 {[%emt 0:00:56]} 21. Bd4 {[%emt 0:12:51]} Rc8 {[%emt 0:16:35]} 22. Qh3 {[%emt 0:01:01]} Nf8 {[%emt 0:01:50]} 23. Qa3 {[%emt 0:04:34]} Nd7 24. Rae1 {[%emt 0:04:24]} Ndc5 {[%emt 0:03:24]} 25. Rxe4 {[%emt 0:04:50]} Nxe4 {[%emt 0:00:19]} 26. Qh3 {[%emt 0:00:12]} Qe7 {[%emt 0:00:41]} 27. Qxh7 {[%emt 0:00:19]} Rh8 {[%emt 0:00:29]} 28. Qxg6+ {[%emt 0:00:19]} Kf8 {[%emt 0:00:28]} 29. f5 {[%emt 0:02:05]} Nf6 {[%emt 0:01:08]} 30. fxe6 {[%emt 0:00:51]} Rd8 {[%emt 0:00:34]} 31. Nd7+ {[%emt 0:01:13]} Rxd7 {[%emt 0:00:14]} 32. exd7 {[%emt 0:00:10]} Rh6 {[%emt 0:00:18]} 33. Rxf6+ {[%emt 0:01:13]} Bxf6 {[%emt 0:00:47]} 34. Qxh6+ {[%emt 0:00:10]} Kg8 {[%emt 0:00:22]} 35. Qg6+ {[%emt 0:00:10]} Kf8 {[%emt 0:00:09]} 36. Qxf6+ {[%emt 0:00:08]} Qxf6 {[%emt 0:00:05]} 37. Bxf6 {[%emt 0:00:05]} Kf7 {[%emt 0:00:04]} 38. d8=Q {[%emt 0:00:09]} Kg6 {[%emt 0:00:06]} 39. Nd4 {[%emt 0:00:07]} Kf7 {[%emt 0:00:07]} 40. Qe7+ {[%emt 0:00:00]} Kg6 {[%emt 0:00:00]} 41. Qg7+ {[%emt 0:00:05]} Kh5 {[%emt 0:00:17]} 42. Qg5# {[%emt 0:00:03]} 1-0

[Event "IIFL Wealth  4th Mumbai Junior U-13"]
[Site "Mumbai"]
[Date "2019.01.06"]
[Round "8"]
[White "Amrit Raunak"]
[Black "Jain Aryan S"]
[Result "1/2-1/2"]
[ECO "C50"]
[WhiteElo "1410"]
[BlackElo "1115"]
[Annotator "NA"]
[PlyCount "77"]
[EventDate "2018.12.30"]
[EventType "swiss"]
[EventCountry "IND"]
[SourceTitle "playchess.com"]
[Source "ChessBase"]
[SourceQuality "1"]
[TimeControl "40/5400+30:1800+30"]

1. e4 {[%emt 0:00:00]} e5 {[%emt 0:00:00]} 2. Nf3 {[%emt 0:00:00]} Nc6 {[%emt 0:00:00]} 3. Bc4 {[%emt 0:00:00]} Be7 {[%emt 0:00:00]} 4. O-O {[%emt 0:00:00]} Nf6 {[%emt 0:00:00]} 5. d3 {[%emt 0:00:00]} O-O {[%emt 0:00:00]} 6. Nc3 {[%emt 0:00:03]} d6 {[%emt 0:00:01]} 7. h3 {[%emt 0:00:04]} Be6 {[%emt 0:00:09]} 8. Bb3 {[%emt 0:00:03]} Qd7 {[%emt 0:00:31]} 9. Nh2 {[%emt 0:00:24]} d5 {[%emt 0:00:49]} 10. exd5 {[%emt 0:00:52]} Nxd5 {[%emt 0:00:28]} 11. Bxd5 {[%emt 0:00:08]} Bxd5 {[%emt 0:00:06]} 12. f4 {[%emt 0:01:16]} Bc5+ {[%emt 0:03:12]} 13. Kh1 {[%emt 0:00:17]} exf4 {[%emt 0:01:10]} 14. Bxf4 {[%emt 0:00:09]} Ne7 {[%emt 0:06:27]} 15. Qg4 {[%emt 0:08:18]} Qxg4 {[%emt 0:01:09]} 16. Nxg4 {[%emt 0:00:18]} c6 {[%emt 0:00:58]} 17. Bg3 {[%emt 0:03:29]} Bd4 {[%emt 0:07:24]} 18. Nxd5 {[%emt 0:00:48]} Nxd5 {[%emt 0:02:46]} 19. c3 {[%emt 0:00:08]} Bc5 {[%emt 0:00:28]} 20. Ne5 {[%emt 0:02:18]} Bd6 {[%emt 0:03:10]} 21. Bh2 {[%emt 0:00:12]} Rad8 {[%emt 0:00:35]} 22. Nc4 Bxh2 23. Kxh2 Rfe8 24. Rae1 f6 25. Na5 Rxe1 26. Rxe1 Nf4 27. d4 Rd7 28. Nb3 Kf7 29. Nc5 Rc7 30. g3 Nd5 31. Kg2 b6 32. Nd3 g5 33. Kf3 h5 34. Nf2 Ne7 35. Ne4 Nc8 36. Kg2 Re7 37. Re3 Kg6 38. Kf3 f5 39. Kf2 1/2-1/2

[Event "IIFL Wealth  4th Mumbai Junior U-13"]
[Site "Mumbai"]
[Date "2019.01.06"]
[Round "8"]
[White "Manavalan, Siddharth Krishna"]
[Black "Shreyas Ravindra Patil"]
[Result "1-0"]
[ECO "A08"]
[WhiteElo "1406"]
[BlackElo "1110"]
[Annotator "NA"]
[PlyCount "99"]
[EventDate "2018.12.30"]
[EventType "swiss"]
[EventCountry "IND"]
[SourceTitle "playchess.com"]
[Source "ChessBase"]
[SourceQuality "1"]
[TimeControl "40/5400+30:1800+30"]

1. Nf3 {[%emt 0:00:00]} c5 {[%emt 0:00:00]} 2. g3 {[%emt 0:00:24]} d5 {[%emt 0:00:00]} 3. Bg2 {[%emt 0:00:12]} Nf6 {[%emt 0:00:03]} 4. d3 {[%emt 0:00:23]} Nc6 {[%emt 0:00:15]} 5. O-O {[%emt 0:00:34]} Bf5 {[%emt 0:00:09]} 6. c4 {[%emt 0:00:21]} dxc4 {[%emt 0:00:55]} 7. dxc4 {[%emt 0:00:11]} e6 {[%emt 0:00:32]} 8. Bf4 {[%emt 0:00:29]} Be7 {[%emt 0:01:36]} 9. Nc3 {[%emt 0:00:46]} a6 {[%emt 0:00:54]} 10. Ne5 {[%emt 0:00:57]} Nxe5 {[%emt 0:02:06]} 11. Bxe5 {[%emt 0:00:18]} O-O {[%emt 0:04:55]} 12. Bxb7 {[%emt 0:00:27]} Ra7 {[%emt 0:01:09]} 13. Bg2 {[%emt 0:00:44]} Ng4 {[%emt 0:04:39]} 14. Bf4 {[%emt 0:02:01]} Rd7 {[%emt 0:11:43]} 15. Qa4 {[%emt 0:02:02]} Bd6 {[%emt 0:11:26]} 16. Bxd6 {[%emt 0:01:35]} Rxd6 {[%emt 0:03:35]} 17. Rad1 {[%emt 0:02:03]} Rxd1 {[%emt 0:06:49]} 18. Rxd1 {[%emt 0:00:02]} Qb6 {[%emt 0:00:13]} 19. b3 {[%emt 0:00:51]} h6 {[%emt 0:02:14]} 20. Qc6 {[%emt 0:00:33]} Qa5 {[%emt 0:02:29]} 21. Na4 {[%emt 0:01:12]} Bc2 {[%emt 0:04:24]} 22. Ra1 {[%emt 0:01:03]} Qd2 {[%emt 0:02:02]} 23. Bf3 {[%emt 0:00:43]} Qd4 {[%emt 0:01:16]} 24. Rf1 {[%emt 0:00:53]} Ne5 {[%emt 0:01:49]} 25. Qxc5 {[%emt 0:00:28]} Nxf3+ {[%emt 0:06:45]} 26. exf3 {[%emt 0:00:23]} Qxc5 {[%emt 0:00:41]} 27. Nxc5 {[%emt 0:00:03]} a5 {[%emt 0:00:09]} 28. Rc1 {[%emt 0:00:56]} Bg6 {[%emt 0:02:04]} 29. Nb7 {[%emt 0:01:30]} Ra8 {[%emt 0:02:42]} 30. c5 {[%emt 0:00:02]} e5 {[%emt 0:00:18]} 31. c6 Bf5 {[%emt 0:00:40]} 32. c7 {[%emt 0:00:37]} Bc8 {[%emt 0:02:30]} 33. Rd1 {[%emt 0:00:44]} Ra7 {[%emt 0:00:50]} 34. Rd8+ {[%emt 0:00:20]} Kh7 {[%emt 0:00:26]} 35. Rxc8 {[%emt 0:00:03]} Rxb7 {[%emt 0:00:04]} 36. Rh8+ {[%emt 0:00:05]} Kxh8 {[%emt 0:00:22]} 37. c8=Q+ {[%emt 0:00:07]} Kh7 {[%emt 0:00:05]} 38. Qxb7 {[%emt 0:00:06]} Kg6 {[%emt 0:00:22]} 39. Qb6+ {[%emt 0:00:09]} Kf5 {[%emt 0:00:10]} 40. Qxa5 {[%emt 0:00:00]} f6 {[%emt 0:00:00]} 41. b4 {[%emt 0:00:35]} g5 {[%emt 0:00:19]} 42. b5 {[%emt 0:00:10]} h5 {[%emt 0:00:07]} 43. b6 {[%emt 0:00:13]} h4 {[%emt 0:00:05]} 44. g4+ {[%emt 0:00:12]} Kf4 {[%emt 0:00:18]} 45. Qa3 {[%emt 0:00:26]} e4 {[%emt 0:00:08]} 46. b7 {[%emt 0:00:20]} Ke5 {[%emt 0:00:16]} 47. b8=Q+ {[%emt 0:00:11]} Ke6 {[%emt 0:00:07]} 48. Qad6+ {[%emt 0:00:26]} Kf7 {[%emt 0:00:12]} 49. Qbc7+ {[%emt 0:00:08]} Kg6 {[%emt 0:00:09]} 50. Qf8 {[%emt 0:00:23]} 1-0

[Event "IIFL Wealth  4th Mumbai Junior U-13"]
[Site "Mumbai"]
[Date "2019.01.06"]
[Round "8"]
[White "Ananya Arumbakkam"]
[Black "Barde Om"]
[Result "1/2-1/2"]
[ECO "B52"]
[WhiteElo "1405"]
[BlackElo "1801"]
[Annotator "NA"]
[PlyCount "143"]
[EventDate "2018.12.30"]
[EventType "swiss"]
[EventCountry "IND"]
[SourceTitle "playchess.com"]
[Source "ChessBase"]
[SourceQuality "1"]
[TimeControl "40/5400+30:1800+30"]

1. e4 {[%emt 0:00:00]} c5 {[%emt 0:00:00]} 2. Nf3 {[%emt 0:00:09]} d6 {[%emt 0:00:00]} 3. Bb5+ {[%emt 0:00:25]} Bd7 {[%emt 0:00:00]} 4. Bxd7+ {[%emt 0:00:13]} Nxd7 {[%emt 0:00:13]} 5. d4 {[%emt 0:01:39]} cxd4 {[%emt 0:01:46]} 6. Qxd4 {[%emt 0:00:45]} e6 {[%emt 0:04:06] B52: Sicilian: Moscow Variation with 3...Bd7} 7. c4 {[%emt 0:01:08]} Ngf6 {[%emt 0:00:57]} 8. Nc3 {[%emt 0:01:15]} a6 {[%emt 0:00:09]} 9. O-O {[%emt 0:01:30]} Be7 {[%emt 0:00:31]} 10. b3 {[%emt 0:00:40]} O-O {[%emt 0:02:54]} 11. Bb2 {[%emt 0:00:25]} Qc7 {[%emt 0:03:44]} 12. Rac1 {[%emt 0:01:06]} Rac8 {[%emt 0:00:19]} 13. Rfd1 {[%emt 0:04:52] [#]} Qb8 $146 {[%emt 0:02:16]} ({Predecessor:} 13... Rfd8 14. h3 h6 15. Qe3 {½-½ (43) Kirwald,F (2265)-Faber,H (2504) Remote email 2013}) 14. Ne1 {[%emt 0:02:53]} Rfd8 {[%emt 0:03:26]} 15. Nc2 {[%emt 0:03:46]} b5 {[%emt 0:06:38]} 16. cxb5 {[%emt 0:04:47]} axb5 {[%emt 0:00:21]} 17. Nb4 {[%emt 0:00:37]} Qb7 {[%emt 0:03:06]} 18. Kh1 {[%emt 0:05:18]} Ne5 {[%emt 0:11:48]} 19. f3 {[%emt 0:06:21]} Nc6 {[%emt 0:24:17]} 20. Nxc6 {[%emt 0:03:40]} Rxc6 {[%emt 0:00:37]} 21. e5 {[%emt 0:04:56]} Ne8 {[%emt 0:01:52]} 22. Ne4 {[%emt 0:09:38]} d5 {[%emt 0:09:16]} 23. Nf2 {[%emt 0:04:58]} Ra6 {[%emt 0:02:26]} 24. a3 {[%emt 0:09:30]} Bxa3 {[%emt 0:06:08]} 25. Bxa3 {[%emt 0:00:06]} Rxa3 {[%emt 0:00:02]} 26. Qb4 {[%emt 0:00:25]} Ra6 {[%emt 0:06:44]} 27. Rc5 {[%emt 0:02:05]} Rb8 {[%emt 0:01:55]} 28. Rdc1 {[%emt 0:00:57]} Qd7 {[%emt 0:04:16]} 29. Nd3 {[%emt 0:03:23]} Rab6 {[%emt 0:00:35]} 30. Ra1 {[%emt 0:01:38]} h6 {[%emt 0:01:09]} 31. h3 {[%emt 0:00:54]} Kh7 {[%emt 0:00:30]} 32. Kh2 {[%emt 0:00:07]} R6b7 {[%emt 0:02:13]} 33. Ra6 {[%emt 0:01:52]} Qe7 {[%emt 0:00:19]} 34. Rac6 {[%emt 0:04:14]} Qd7 {[%emt 0:01:35]} 35. Ra6 {[%emt 0:00:44]} Rb6 {[%emt 0:00:49]} 36. Ra5 {[%emt 0:00:28]} R8b7 {[%emt 0:00:26]} 37. Ra8 {[%emt 0:02:03]} Nc7 {[%emt 0:00:33]} 38. Ra5 {[%emt 0:01:16]} Qe7 {[%emt 0:00:32]} 39. Qa3 {[%emt 0:01:49]} g6 {[%emt 0:00:24]} 40. Ra7 {[%emt 0:00:00]} Ne8 {[%emt 0:00:00]} 41. Rxb7 {[%emt 0:01:41]} Qxb7 {[%emt 0:03:05]} 42. Qc1 {[%emt 0:01:07]} Qe7 {[%emt 0:04:17]} 43. Rc8 {[%emt 0:06:04]} Qd7 {[%emt 0:07:48]} 44. b4 {[%emt 0:01:58]} Rb7 {[%emt 0:04:28]} 45. Qc5 {[%emt 0:01:02]} Kg7 {[%emt 0:02:03]} 46. f4 {[%emt 0:02:55]} Rc7 {[%emt 0:07:36]} 47. Rxc7 {[%emt 0:00:08]} Qxc7 {[%emt 0:00:12]} 48. Qxb5 {[%emt 0:01:36]} Qc4 {[%emt 0:00:22]} 49. Qxc4 {[%emt 0:03:28]} dxc4 {[%emt 0:00:16]} 50. Nc5 {[%emt 0:01:05]} Nc7 {[%emt 0:01:34]} 51. Kg3 {[%emt 0:00:04]} Nd5 {[%emt 0:01:11]} 52. b5 {[%emt 0:00:10]} Kf8 {[%emt 0:00:55]} 53. Kf3 {[%emt 0:00:33]} Ke7 {[%emt 0:00:31]} 54. g3 {[%emt 0:01:10]} Kd8 {[%emt 0:01:20]} 55. Na4 {[%emt 0:01:56]} Kc7 {[%emt 0:02:09]} 56. Ke4 {[%emt 0:00:12]} c3 $2 {[%emt 0:00:33]} (56... Nb6 $11 {and Black stays safe.} 57. Nc3 Nd5) 57. Kd3 {[%emt 0:00:18]} c2 {[%emt 0:00:08]} 58. Kxc2 {[%emt 0:00:12]} Ne3+ {[%emt 0:00:34]} 59. Kd3 {[%emt 0:00:10]} Nf1 {[%emt 0:00:01]} 60. g4 {[%emt 0:00:13]} h5 $18 {[%emt 0:00:36]} 61. Nc3 {[%emt 0:03:13]} Ng3 {[%emt 0:00:52]} 62. Ne4 {[%emt 0:01:24]} Nxe4 {[%emt 0:00:39]} 63. Kxe4 {[%emt 0:00:06]} hxg4 {[%emt 0:00:04]} 64. hxg4 {[%emt 0:00:07]} Kb6 {[%emt 0:00:07]} 65. g5 {[%emt 0:01:54]} Kxb5 {[%emt 0:00:09]} 66. Kd3 {[%emt 0:00:05]} Kc5 {[%emt 0:01:30]} 67. Kc3 {[%emt 0:00:09]} Kd5 {[%emt 0:00:01]} 68. Kd3 {[%emt 0:00:06]} Kc5 {[%emt 0:00:47]} 69. Kc3 {[%emt 0:00:01]} Kb5 {[%emt 0:00:10]} 70. Kb3 {[%emt 0:00:07]} Kc5 {[%emt 0:01:15]} 71. Kc3 {[%emt 0:00:03]} Kd5 {[%emt 0:00:02]} 72. Kd3 {[%emt 0:00:04] Kxe5 Ke4+} 1/2-1/2

[Event "IIFL Wealth  4th Mumbai Junior U-13"]
[Site "Mumbai"]
[Date "2019.01.06"]
[Round "8"]
[White "Virle Kimaya"]
[Black "Sri Rashmika M"]
[Result "1/2-1/2"]
[ECO "D68"]
[WhiteElo "1391"]
[BlackElo "1039"]
[Annotator "NA"]
[PlyCount "98"]
[EventDate "2018.12.30"]
[EventType "swiss"]
[EventCountry "IND"]
[SourceTitle "playchess.com"]
[Source "ChessBase"]
[SourceQuality "1"]
[TimeControl "40/5400+30:1800+30"]

1. d4 {[%emt 0:00:00]} d5 {[%emt 0:00:00]} 2. c4 {[%emt 0:00:00]} e6 {[%emt 0:00:00]} 3. Nc3 {[%emt 0:00:00]} Nf6 {[%emt 0:00:02]} 4. Bg5 {[%emt 0:00:00]} Be7 {[%emt 0:00:03]} 5. e3 {[%emt 0:00:03]} O-O {[%emt 0:00:04]} 6. Nf3 {[%emt 0:00:09]} Nbd7 {[%emt 0:01:19]} 7. Rc1 {[%emt 0:00:14]} c6 {[%emt 0:00:03]} 8. Bd3 {[%emt 0:00:12]} dxc4 {[%emt 0:00:02]} 9. Bxc4 {[%emt 0:00:15]} Nd5 {[%emt 0:02:01]} 10. Bxe7 {[%emt 0:00:11]} Qxe7 {[%emt 0:00:03]} 11. O-O {[%emt 0:00:13]} Nxc3 {[%emt 0:03:00]} 12. Rxc3 {[%emt 0:00:23]} e5 {[%emt 0:03:54]} 13. Qc2 {[%emt 0:00:45]} exd4 {[%emt 0:06:56]} 14. exd4 {[%emt 0:00:30]} Nb6 {[%emt 0:12:14]} 15. Re1 {[%emt 0:01:22]} Qf6 {[%emt 0:07:25]} 16. Bb3 {[%emt 0:02:31]} Bg4 {[%emt 0:05:45]} 17. Qe4 {[%emt 0:01:47]} Qf5 {[%emt 0:17:14]} 18. Qxf5 {[%emt 0:12:40]} Bxf5 {[%emt 0:00:02]} 19. Rc5 {[%emt 0:00:06]} Bd7 {[%emt 0:08:51]} 20. Ng5 {[%emt 0:01:26]} Rae8 {[%emt 0:08:55]} 21. Rce5 {[%emt 0:02:11]} Nd5 {[%emt 0:02:03]} 22. Kf1 {[%emt 0:12:59]} f6 {[%emt 0:04:17]} 23. Rxe8 {[%emt 0:04:17]} Rxe8 {[%emt 0:00:18]} 24. Rxe8+ {[%emt 0:00:52]} Bxe8 {[%emt 0:00:02]} 25. Bxd5+ {[%emt 0:01:32]} cxd5 {[%emt 0:00:02]} 26. Ne6 {[%emt 0:00:16]} Bc6 {[%emt 0:02:33]} 27. Nd8 {[%emt 0:01:17]} Kf8 {[%emt 0:01:53]} 28. Ne6+ {[%emt 0:00:30]} Kf7 {[%emt 0:00:18]} 29. Nc5 {[%emt 0:00:26]} b6 {[%emt 0:03:24]} 30. Nb3 {[%emt 0:01:05]} Bb5+ {[%emt 0:02:38]} 31. Ke1 {[%emt 0:00:07]} Bc4 {[%emt 0:00:51]} 32. Nc1 {[%emt 0:00:06]} Ke6 {[%emt 0:00:15]} 33. b3 {[%emt 0:00:05]} Ba6 {[%emt 0:00:27]} 34. a3 {[%emt 0:00:18]} Kf5 {[%emt 0:01:47]} 35. Kd2 {[%emt 0:01:03]} Ke4 {[%emt 0:02:14]} 36. Kc3 {[%emt 0:00:46]} Bf1 {[%emt 0:01:10]} 37. g3 {[%emt 0:00:51]} Kf3 {[%emt 0:01:49]} 38. Na2 {[%emt 0:00:12]} Kxf2 {[%emt 0:02:18]} 39. Nb4 {[%emt 0:00:07]} Bg2 {[%emt 0:00:52]} 40. Nc6 {[%emt 0:00:00]} a6 {[%emt 0:00:00]} 41. Nb8 {[%emt 0:00:57]} Bf1 {[%emt 0:10:10]} 42. Nd7 {[%emt 0:00:39]} Kg2 {[%emt 0:02:00]} 43. Nxb6 {[%emt 0:00:40]} Kxh2 {[%emt 0:00:05]} 44. Nxd5 {[%emt 0:00:04]} Kxg3 {[%emt 0:00:06]} 45. Nc7 {[%emt 0:01:23]} Kf4 {[%emt 0:00:45]} 46. Ne6+ {[%emt 0:01:34]} Ke4 {[%emt 0:02:40]} 47. Nxg7 {[%emt 0:00:14]} f5 {[%emt 0:00:48]} 48. Nh5 {[%emt 0:02:26]} f4 {[%emt 0:07:00]} 49. d5 Kxd5 {Kd4+} 1/2-1/2

[Event "IIFL Wealth  4th Mumbai Junior U-13"]
[Site "Mumbai"]
[Date "2019.01.06"]
[Round "8"]
[White "Agarwal Mukund H"]
[Black "Kshatriya Nitin Vekhande"]
[Result "1/2-1/2"]
[ECO "B23"]
[WhiteElo "1375"]
[BlackElo "1544"]
[Annotator "NA"]
[PlyCount "125"]
[EventDate "2018.12.30"]
[EventType "swiss"]
[EventCountry "IND"]
[SourceTitle "playchess.com"]
[Source "ChessBase"]
[SourceQuality "1"]
[TimeControl "40/5400+30:1800+30"]

1. e4 {[%emt 0:00:00]} c5 {[%emt 0:00:00]} 2. Nc3 {[%emt 0:00:00]} g6 {[%emt 0:00:00]} 3. f4 {[%emt 0:00:00]} Bg7 {[%emt 0:00:05]} 4. Nf3 {[%emt 0:00:00]} Nc6 {[%emt 0:00:09]} 5. Bb5 {[%emt 0:00:00]} Nd4 {[%emt 0:00:22]} 6. Nxd4 {[%emt 0:00:00]} Bxd4 {[%emt 0:00:14]} 7. Ne2 {[%emt 0:00:01]} Bg7 {[%emt 0:00:09]} 8. d3 {[%emt 0:01:06]} a6 {[%emt 0:00:41]} 9. Bc4 {[%emt 0:00:05]} b5 {[%emt 0:00:04]} 10. Bb3 {[%emt 0:00:49]} e6 {[%emt 0:00:31]} 11. c3 {[%emt 0:03:35]} Ne7 {[%emt 0:01:00]} 12. O-O {[%emt 0:03:07]} O-O {[%emt 0:02:07]} 13. Be3 {[%emt 0:05:39]} Qc7 {[%emt 0:01:20]} 14. d4 {[%emt 0:03:30]} c4 {[%emt 0:02:48]} 15. Bc2 {[%emt 0:00:05]} Bb7 {[%emt 0:01:02]} 16. Ng3 {[%emt 0:07:16]} f5 {[%emt 0:00:49]} 17. exf5 {[%emt 0:01:55]} exf5 {[%emt 0:01:14]} 18. Qd2 {[%emt 0:02:51]} Nd5 {[%emt 0:01:02]} 19. Rae1 {[%emt 0:03:50]} Rae8 {[%emt 0:00:47]} 20. Bd1 {[%emt 0:02:53]} Re7 {[%emt 0:00:59]} 21. Bf3 {[%emt 0:03:07]} Rfe8 {[%emt 0:00:36]} 22. Bxd5+ {[%emt 0:00:44]} Bxd5 {[%emt 0:01:19]} 23. Rf2 {[%emt 0:08:19]} Qb7 {[%emt 0:03:07]} 24. Rfe2 {[%emt 0:02:06]} Bh6 {[%emt 0:04:12]} 25. Rf2 {[%emt 0:05:41]} d6 {[%emt 0:01:22]} 26. Rfe2 {[%emt 0:01:40]} Kf7 {[%emt 0:01:36]} 27. Rf2 {[%emt 0:01:08]} Qd7 {[%emt 0:22:12]} 28. Rfe2 {[%emt 0:02:50]} Rxe3 {[%emt 0:14:18]} 29. Rxe3 {[%emt 0:01:43]} Bxf4 {[%emt 0:00:27]} 30. Qf2 {[%emt 0:01:27]} Rxe3 {[%emt 0:05:08]} 31. Rxe3 {[%emt 0:00:08]} Bxe3 {[%emt 0:00:12]} 32. Qxe3 {[%emt 0:00:01]} Qe7 {[%emt 0:01:19]} 33. Qxe7+ {[%emt 0:00:40]} Kxe7 {[%emt 0:00:09]} 34. Kf2 {[%emt 0:00:14]} Kf6 {[%emt 0:02:09]} 35. Ne2 {[%emt 0:01:14]} g5 {[%emt 0:00:32]} 36. g3 {[%emt 0:00:39]} h6 {[%emt 0:00:48]} 37. Ke3 {[%emt 0:02:03]} Be4 {[%emt 0:01:59]} 38. Kf2 {[%emt 0:02:29]} Bd3 {[%emt 0:03:29]} 39. Ng1 {[%emt 0:00:53]} g4 40. h4 {[%emt 0:00:00]} Bb1 {[%emt 0:00:00]} 41. a3 {[%emt 0:05:30]} Bd3 {[%emt 0:10:13]} 42. Ke3 {[%emt 0:00:28]} f4+ 43. Kxf4 {[%emt 0:02:51]} h5 {[%emt 0:02:01]} 44. Ke3 {[%emt 0:02:31]} Kf5 {[%emt 0:00:04]} 45. b4 {[%emt 0:03:29]} d5 {[%emt 0:13:23]} 46. Kf2 {[%emt 0:00:22]} Ke4 {[%emt 0:05:53]} 47. Ne2 {[%emt 0:00:20]} Bxe2 {[%emt 0:26:42]} 48. Kxe2 {[%emt 0:00:48]} Kf5 {[%emt 0:00:10]} 49. Ke3 {[%emt 0:00:13]} Ke6 {[%emt 0:00:04]} 50. Kf4 {[%emt 0:00:12]} Kf6 {[%emt 0:00:05]} 51. Ke3 {[%emt 0:00:06]} Kf5 {[%emt 0:00:02]} 52. Kf2 {[%emt 0:00:10]} Ke4 {[%emt 0:00:13]} 53. Ke2 {[%emt 0:00:03]} Kf5 {[%emt 0:00:34]} 54. Ke3 {[%emt 0:00:05]} Ke6 {[%emt 0:00:04]} 55. Kf4 {[%emt 0:00:05]} Kf6 {[%emt 0:00:03]} 56. Ke3 {[%emt 0:00:06]} Kf5 {[%emt 0:00:06]} 57. Kf2 {[%emt 0:00:03]} Ke4 {[%emt 0:00:09]} 58. Ke2 {[%emt 0:00:04]} Kf5 {[%emt 0:00:04]} 59. Ke3 {[%emt 0:00:01]} Ke6 {[%emt 0:00:06]} 60. Kf4 {[%emt 0:00:05]} Kf6 {[%emt 0:00:19]} 61. Ke3 {[%emt 0:00:26]} Kf5 {[%emt 0:00:12]} 62. Kf2 {[%emt 0:00:10]} Ke4 {[%emt 0:00:03]} 63. Ke2 {Ke5} 1/2-1/2

[Event "IIFL Wealth  4th Mumbai Junior U-13"]
[Site "Mumbai"]
[Date "2019.01.06"]
[Round "8"]
[White "Shreyas Seshadri Nallore"]
[Black "Aditya Ramanathan"]
[Result "1-0"]
[ECO "C44"]
[WhiteElo "1343"]
[BlackElo "1493"]
[Annotator "NA"]
[PlyCount "125"]
[EventDate "2018.12.30"]
[EventType "swiss"]
[EventCountry "IND"]
[SourceTitle "playchess.com"]
[Source "ChessBase"]
[SourceQuality "1"]
[TimeControl "40/5400+30:1800+30"]

1. e4 {[%emt 0:00:00]} e5 {[%emt 0:00:00]} 2. Nf3 {[%emt 0:00:00]} Nc6 {[%emt 0:00:00]} 3. d4 {[%emt 0:00:00]} exd4 {[%emt 0:00:00]} 4. Nxd4 {[%emt 0:00:00]} Nf6 {[%emt 0:00:00]} 5. Nc3 {[%emt 0:00:00]} Bb4 {[%emt 0:00:07]} 6. Nxc6 {[%emt 0:00:00]} bxc6 {[%emt 0:00:05]} 7. Bd3 {[%emt 0:00:04]} d5 {[%emt 0:00:10]} 8. exd5 {[%emt 0:00:18]} O-O {[%emt 0:00:11]} 9. O-O {[%emt 0:01:11]} cxd5 {[%emt 0:00:06]} 10. Bg5 {[%emt 0:00:28]} c6 {[%emt 0:00:09]} 11. Qf3 {[%emt 0:02:00]} Be6 {[%emt 0:03:44]} 12. Bxf6 {[%emt 0:04:44]} Qxf6 {[%emt 0:00:07]} 13. Qxf6 {[%emt 0:00:04]} gxf6 {[%emt 0:00:08]} 14. Ne2 {[%emt 0:01:08]} c5 {[%emt 0:01:28]} 15. Ng3 {[%emt 0:06:48]} c4 {[%emt 0:01:43]} 16. Be2 Bd6 {[%emt 0:01:23]} 17. Rad1 {[%emt 0:05:41]} Rfd8 {[%emt 0:01:59]} 18. Bf3 {[%emt 0:04:10]} Be5 {[%emt 0:05:27]} 19. b3 {[%emt 0:00:29]} cxb3 {[%emt 0:00:07]} 20. cxb3 {[%emt 0:00:23]} Rac8 {[%emt 0:00:12]} 21. Rd2 {[%emt 0:08:27]} d4 {[%emt 0:05:21]} 22. Rfd1 {[%emt 0:05:10]} Rc7 {[%emt 0:09:22]} 23. Ne2 {[%emt 0:05:17]} Rcd7 {[%emt 0:00:51]} 24. Bc6 {[%emt 0:02:55]} Rd6 {[%emt 0:00:14]} 25. Bb5 {[%emt 0:00:14]} a6 {[%emt 0:08:37]} 26. Bd3 {[%emt 0:01:40]} f5 {[%emt 0:07:55]} 27. f4 {[%emt 0:00:25]} Bf6 {[%emt 0:00:50]} 28. Ng3 {[%emt 0:00:34]} Kf8 {[%emt 0:03:25]} 29. Bxf5 {[%emt 0:01:54]} Bxf5 {[%emt 0:00:08]} 30. Nxf5 {[%emt 0:00:09]} Rd5 {[%emt 0:00:07]} 31. Ng3 {[%emt 0:02:18]} d3 {[%emt 0:00:30]} 32. Kf1 {[%emt 0:07:18]} Bc3 {[%emt 0:00:16]} 33. Rf2 {[%emt 0:00:10]} d2 {[%emt 0:05:44]} 34. Ne4 {[%emt 0:03:09]} Ba5 {[%emt 0:00:44]} 35. a3 {[%emt 0:02:32]} Rd4 {[%emt 0:01:06]} 36. Nc5 {[%emt 0:04:57]} Re8 {[%emt 0:01:34]} 37. b4 {[%emt 0:01:32]} Bb6 {[%emt 0:01:57]} 38. Rdxd2 {[%emt 0:01:04]} Bxc5 {[%emt 0:00:52]} 39. bxc5 {[%emt 0:00:09]} Rc4 {[%emt 0:00:21]} 40. Rc2 {[%emt 0:00:00]} Rd4 {[%emt 0:00:00]} 41. g3 {[%emt 0:01:02]} Rc8 {[%emt 0:00:54]} 42. Rc3 {[%emt 0:00:27]} Rd1+ {[%emt 0:00:07]} 43. Kg2 {[%emt 0:00:22]} Rd5 {[%emt 0:00:05]} 44. c6 {[%emt 0:00:23]} Rd6 {[%emt 0:00:10]} 45. c7 {[%emt 0:00:10]} Ke7 {[%emt 0:00:18]} 46. Rfc2 {[%emt 0:00:28]} Kd7 {[%emt 0:00:05]} 47. Kf3 {[%emt 0:00:08]} f5 {[%emt 0:00:06]} 48. Kg2 {[%emt 0:00:46]} h5 {[%emt 0:00:21]} 49. Kh3 {[%emt 0:00:07]} a5 {[%emt 0:00:28]} 50. Rc5 {[%emt 0:00:13]} h4 51. Kxh4 {[%emt 0:00:24]} Rg6 {[%emt 0:00:19]} 52. Rxf5 {[%emt 0:00:32]} a4 {[%emt 0:00:05]} 53. Rg5 {[%emt 0:00:17]} Rh6+ {[%emt 0:00:09]} 54. Rh5 {[%emt 0:00:09]} Re6 {[%emt 0:00:26]} 55. Rc3 {[%emt 0:00:27]} Ke7 {[%emt 0:00:15]} 56. g4 {[%emt 0:00:28]} Re2 {[%emt 0:00:05]} 57. h3 {[%emt 0:00:04]} Rh2 {[%emt 0:00:16]} 58. f5 {[%emt 0:00:11]} Kf6 {[%emt 0:00:04]} 59. Rh6+ {[%emt 0:00:11]} Kg7 {[%emt 0:00:06]} 60. Rd6 {[%emt 0:00:09]} Rh8+ {[%emt 0:00:40]} 61. Kg5 {[%emt 0:00:09]} Rc8 {[%emt 0:00:08]} 62. Rd8 {[%emt 0:00:23]} Rxc7 {[%emt 0:00:11]} 63. Rxc7# {[%emt 0:00:04]} 1-0